[Event "*** SCC Grand Prix: Titled Tuesday Blitz"]
[Site "Chess.com"]
[Date "2020.06.02"]
[Round "7"]
[White "MNyuyu"]
[Black "Aleksandar-Topalov"]
[Result "0-1"]
[WhiteElo "2272"]
[BlackElo "2437"]
[TimeControl "180+1"]
[EndTime "11:21:10 PDT"]
[Termination "Aleksandar-Topalov won by resignation"]

1. d4 {[%clk 0:03:00.9]} 1... Nf6 {[%clk 0:02:56.9]} 2. Nf3 {[%clk 0:03:00.2]}
2... g6 {[%clk 0:02:56.4]} 3. Bf4 {[%clk 0:02:59.8]} 3... Bg7 {[%clk 0:02:56.4]}
4. e3 {[%clk 0:03:00]} 4... O-O {[%clk 0:02:57]} 5. h3 {[%clk 0:03:00.3]} 5...
d6 {[%clk 0:02:57.5]} 6. Be2 {[%clk 0:03:00.2]} 6... Nbd7 {[%clk 0:02:57.5]} 7.
O-O {[%clk 0:03:00]} 7... b6 {[%clk 0:02:57.9]} 8. c3 {[%clk 0:02:59.7]} 8...
Bb7 {[%clk 0:02:58.2]} 9. Nbd2 {[%clk 0:02:59.4]} 9... Qe8 {[%clk 0:02:58.7]}
10. Bh2 {[%clk 0:02:59.2]} 10... e5 {[%clk 0:02:58.7]} 11. dxe5 {[%clk
0:02:58.8]} 11... dxe5 {[%clk 0:02:58.5]} 12. Nc4 {[%clk 0:02:58.9]} 12... Ne4
{[%clk 0:02:57.5]} 13. Qc2 {[%clk 0:02:57.2]} 13... Qe7 {[%clk 0:02:56.4]} 14.
Rfd1 {[%clk 0:02:52.9]} 14... Rad8 {[%clk 0:02:54.4]} 15. a4 {[%clk 0:02:50.9]}
15... a6 {[%clk 0:02:54]} 16. Ncd2 {[%clk 0:02:44.7]} 16... Ndc5 {[%clk
0:02:50.5]} 17. b4 {[%clk 0:02:39.3]} 17... Nxd2 {[%clk 0:02:48.2]} 18. Nxd2
{[%clk 0:02:38.4]} 18... Ne6 {[%clk 0:02:47.5]} 19. Bf3 {[%clk 0:02:38]} 19...
Bxf3 {[%clk 0:02:35.2]} 20. Nxf3 {[%clk 0:02:37.5]} 20... Ng5 {[%clk 0:02:31]}
21. Nxg5 {[%clk 0:02:28.8]} 21... Qxg5 {[%clk 0:02:30.6]} 22. Qe4 {[%clk
0:02:27.6]} 22... Qe7 {[%clk 0:02:17]} 23. Qc4 {[%clk 0:02:16.8]} 23... Ra8
{[%clk 0:01:51.7]} 24. Qc6 {[%clk 0:02:14.2]} 24... Rfd8 {[%clk 0:01:45.2]} 25.
Bg3 {[%clk 0:02:13.5]} 25... a5 {[%clk 0:01:37.6]} 26. bxa5 {[%clk 0:02:02.2]}
26... Rxa5 {[%clk 0:01:32.6]} 27. Kh2 {[%clk 0:01:51.9]} 27... Rc5 {[%clk
0:01:32.2]} 28. Qe4 {[%clk 0:01:43.7]} 28... Rxc3 {[%clk 0:01:25.6]} 29. Rxd8+
{[%clk 0:01:42.8]} 29... Qxd8 {[%clk 0:01:25]} 30. Bxe5 {[%clk 0:01:42.4]} 30...
Qe8 {[%clk 0:01:15.8]} 31. f4 {[%clk 0:01:42.1]} 31... Rc5 {[%clk 0:01:13.6]}
32. Ra3 {[%clk 0:01:34.3]} 32... Bxe5 {[%clk 0:01:01.7]} 33. fxe5 {[%clk
0:01:33.6]} 33... Rxe5 {[%clk 0:01:02]} 34. Qf4 {[%clk 0:01:30.5]} 34... Qe7
{[%clk 0:00:57.3]} 35. Rd3 {[%clk 0:01:25.8]} 35... Re4 {[%clk 0:00:50.2]} 36.
Qf3 {[%clk 0:01:24.6]} 36... Rxa4 {[%clk 0:00:47.3]} 37. Qc6 {[%clk 0:01:24.1]}
37... Re4 {[%clk 0:00:42.5]} 38. Qc3 {[%clk 0:01:06.7]} 38... Qe5+ {[%clk
0:00:37.7]} 39. Qxe5 {[%clk 0:01:05.2]} 39... Rxe5 {[%clk 0:00:38.1]} 40. Rd7
{[%clk 0:01:04.9]} 40... Rc5 {[%clk 0:00:36.9]} 41. Kg3 {[%clk 0:01:03.4]} 41...
b5 {[%clk 0:00:35.6]} 42. Kf3 {[%clk 0:01:02.3]} 42... b4 {[%clk 0:00:35.6]} 43.
Ke2 {[%clk 0:01:01.6]} 43... b3 {[%clk 0:00:35.7]} 44. Rd8+ {[%clk 0:01:00.5]}
44... Kg7 {[%clk 0:00:34.5]} 45. Rb8 {[%clk 0:01:00.4]} 45... Rc2+ {[%clk
0:00:34.5]} 46. Kd3 {[%clk 0:01:00.1]} 46... Rxg2 {[%clk 0:00:34]} 47. Rxb3
{[%clk 0:00:59.3]} 47... Rg3 {[%clk 0:00:34.2]} 48. Rc3 {[%clk 0:00:59]} 48...
Rxh3 {[%clk 0:00:33.9]} 49. Rxc7 {[%clk 0:00:58.8]} 49... Rg3 {[%clk 0:00:30.6]}
50. Ke4 {[%clk 0:00:57.6]} 50... h5 {[%clk 0:00:29.1]} 51. Kf4 {[%clk
0:00:57.3]} 51... Rg4+ {[%clk 0:00:29]} 52. Kf3 {[%clk 0:00:56.8]} 52... Kf6
{[%clk 0:00:26.4]} 53. Rc6+ {[%clk 0:00:56]} 53... Kg5 {[%clk 0:00:26.4]} 54.
Rc5+ {[%clk 0:00:54.5]} 54... f5 {[%clk 0:00:26.5]} 55. Rc1 {[%clk 0:00:53.6]}
55... h4 {[%clk 0:00:26.5]} 56. Rh1 {[%clk 0:00:52]} 56... Rg3+ {[%clk
0:00:26.8]} 57. Kf2 {[%clk 0:00:51.6]} 57... Kg4 {[%clk 0:00:27.3]} 58. Ra1
{[%clk 0:00:49.3]} 58... Kg5 {[%clk 0:00:21.3]} 59. Ra6 {[%clk 0:00:46.2]} 59...
Rg4 {[%clk 0:00:20.6]} 60. Ra5 {[%clk 0:00:42.4]} 60... Rb4 {[%clk 0:00:20.7]}
61. Ra8 {[%clk 0:00:41]} 61... Rb3 {[%clk 0:00:20.3]} 62. Rh8 {[%clk 0:00:39.5]}
62... Kg4 {[%clk 0:00:20.7]} 63. Rh6 {[%clk 0:00:37.5]} 63... g5 {[%clk
0:00:20.9]} 64. Rh8 {[%clk 0:00:36.8]} 64... Rb2+ {[%clk 0:00:21.4]} 65. Kf1
{[%clk 0:00:33.8]} 65... h3 {[%clk 0:00:21.7]} 66. Kg1 {[%clk 0:00:32.4]} 66...
Kg3 {[%clk 0:00:21.4]} 67. Kf1 {[%clk 0:00:28.7]} 67... h2 {[%clk 0:00:20.8]}
0-1

[Event "*** SCC Grand Prix: Titled Tuesday Blitz"]
[Site "Chess.com"]
[Date "2020.06.02"]
[Round "7"]
[White "blitzking1729"]
[Black "PavelShkapenko"]
[Result "1-0"]
[WhiteElo "2481"]
[BlackElo "2622"]
[TimeControl "180+1"]
[EndTime "11:21:11 PDT"]
[Termination "blitzking1729 won by resignation"]

1. d4 {[%clk 0:02:56.5]} 1... Nf6 {[%clk 0:02:59.3]} 2. Bg5 {[%clk 0:02:52.2]}
2... Ne4 {[%clk 0:02:58.8]} 3. Bf4 {[%clk 0:02:50.1]} 3... d5 {[%clk 0:02:58]}
4. f3 {[%clk 0:02:49.7]} 4... Nf6 {[%clk 0:02:57]} 5. e4 {[%clk 0:02:49.6]} 5...
dxe4 {[%clk 0:02:56.5]} 6. Nc3 {[%clk 0:02:49.4]} 6... e3 {[%clk 0:02:44.3]} 7.
Qd3 {[%clk 0:02:48.6]} 7... c6 {[%clk 0:02:42]} 8. O-O-O {[%clk 0:02:46]} 8...
Nd5 {[%clk 0:02:41.9]} 9. Nxd5 {[%clk 0:02:43.4]} 9... cxd5 {[%clk 0:02:42.4]}
10. Qxe3 {[%clk 0:02:43.2]} 10... Nc6 {[%clk 0:02:42.7]} 11. Kb1 {[%clk
0:02:40.7]} 11... Bf5 {[%clk 0:02:42.5]} 12. Bd3 {[%clk 0:02:40.1]} 12... Bxd3
{[%clk 0:02:42]} 13. Qxd3 {[%clk 0:02:40.2]} 13... e6 {[%clk 0:02:42.4]} 14. Ne2
{[%clk 0:02:39.2]} 14... Be7 {[%clk 0:02:42.7]} 15. g4 {[%clk 0:02:38.1]} 15...
Qb6 {[%clk 0:02:38.3]} 16. Qb3 {[%clk 0:02:36.1]} 16... Qa6 {[%clk 0:02:29.3]}
17. Nc3 {[%clk 0:02:27.2]} 17... O-O {[%clk 0:02:28.8]} 18. Qb5 {[%clk
0:02:23.5]} 18... Qxb5 {[%clk 0:02:25.9]} 19. Nxb5 {[%clk 0:02:22.6]} 19... Rac8
{[%clk 0:02:26.3]} 20. h4 {[%clk 0:02:17.4]} 20... Rfd8 {[%clk 0:02:23.6]} 21.
g5 {[%clk 0:02:11.4]} 21... a6 {[%clk 0:02:19.2]} 22. Nc3 {[%clk 0:02:10.5]}
22... g6 {[%clk 0:02:00]} 23. Ne2 {[%clk 0:02:04.3]} 23... Bf8 {[%clk
0:02:00.3]} 24. c3 {[%clk 0:02:03.8]} 24... Bg7 {[%clk 0:01:58.1]} 25. h5 {[%clk
0:02:02.7]} 25... b5 {[%clk 0:01:57.8]} 26. b4 {[%clk 0:01:58.7]} 26... a5
{[%clk 0:01:54.2]} 27. a3 {[%clk 0:01:58.1]} 27... Ra8 {[%clk 0:01:51.5]} 28.
Kb2 {[%clk 0:01:33.5]} 28... axb4 {[%clk 0:01:41]} 29. axb4 {[%clk 0:01:32.2]}
29... Ra4 {[%clk 0:01:41.3]} 30. hxg6 {[%clk 0:01:28.1]} 30... hxg6 {[%clk
0:01:40.8]} 31. Ra1 {[%clk 0:01:27.4]} 31... Rda8 {[%clk 0:01:40.4]} 32. Rxa4
{[%clk 0:01:26.7]} 32... Rxa4 {[%clk 0:01:38.2]} 33. Ra1 {[%clk 0:01:21.9]}
33... Rxa1 {[%clk 0:01:36.2]} 34. Kxa1 {[%clk 0:01:22]} 34... f6 {[%clk
0:01:34.7]} 35. gxf6 {[%clk 0:01:21.6]} 35... Bxf6 {[%clk 0:01:35.2]} 36. Kb2
{[%clk 0:01:20.4]} 36... Kf7 {[%clk 0:01:31.9]} 37. Kc2 {[%clk 0:01:20]} 37...
g5 {[%clk 0:01:05]} 38. Bd6 {[%clk 0:01:16.2]} 38... Kg6 {[%clk 0:00:46.9]} 39.
Kd3 {[%clk 0:01:00.2]} 39... e5 {[%clk 0:00:35.2]} 40. dxe5 {[%clk 0:00:57.3]}
40... Bxe5 {[%clk 0:00:29.2]} 41. Bxe5 {[%clk 0:00:48.5]} 41... Nxe5+ {[%clk
0:00:29.4]} 42. Ke3 {[%clk 0:00:48]} 42... Kf6 {[%clk 0:00:26.7]} 43. Nd4 {[%clk
0:00:46.9]} 43... Nc4+ {[%clk 0:00:26.8]} 44. Kf2 {[%clk 0:00:34.6]} 44... Nd6
{[%clk 0:00:26.6]} 45. Kg3 {[%clk 0:00:28.1]} 45... Kg6 {[%clk 0:00:23.4]} 46.
Kg4 {[%clk 0:00:27.5]} 46... Kf6 {[%clk 0:00:23.4]} 47. f4 {[%clk 0:00:28]}
47... gxf4 {[%clk 0:00:22.3]} 48. Kxf4 {[%clk 0:00:28.9]} 48... Nc4 {[%clk
0:00:15.4]} 49. Nxb5 {[%clk 0:00:28.6]} 49... Ke6 {[%clk 0:00:15.9]} 50. Nd4+
{[%clk 0:00:28.1]} 50... Kd6 {[%clk 0:00:16.2]} 51. Kf3 {[%clk 0:00:27.1]} 51...
Nb2 {[%clk 0:00:15.2]} 52. Ke2 {[%clk 0:00:26.4]} 52... Ke5 {[%clk 0:00:14.5]}
53. Kd2 {[%clk 0:00:24.8]} 53... Kd6 {[%clk 0:00:14.6]} 54. Kc2 {[%clk
0:00:24.6]} 54... Na4 {[%clk 0:00:15.1]} 55. Kb3 {[%clk 0:00:24.5]} 55... Nb6
{[%clk 0:00:15.6]} 56. Nf5+ {[%clk 0:00:21.3]} 56... Ke5 {[%clk 0:00:15.3]} 57.
Nd4 {[%clk 0:00:19.8]} 57... Kd6 {[%clk 0:00:15.8]} 58. Nc2 {[%clk 0:00:19.7]}
58... Kc6 {[%clk 0:00:15.4]} 59. Ne3 {[%clk 0:00:19.3]} 59... Kb5 {[%clk
0:00:14.2]} 60. Nxd5 {[%clk 0:00:18.7]} 60... Nxd5 {[%clk 0:00:14.2]} 61. c4+
{[%clk 0:00:19]} 61... Kc6 {[%clk 0:00:14.7]} 62. cxd5+ {[%clk 0:00:18.7]} 62...
Kxd5 {[%clk 0:00:15.2]} 63. Ka4 {[%clk 0:00:19.2]} 63... Kc6 {[%clk 0:00:15.7]}
64. Ka5 {[%clk 0:00:19.7]} 1-0

[Event "*** SCC Grand Prix: Titled Tuesday Blitz"]
[Site "Chess.com"]
[Date "2020.06.02"]
[Round "7"]
[White "Dr-Bassem"]
[Black "FabianoCaruana"]
[Result "0-1"]
[WhiteElo "2796"]
[BlackElo "3015"]
[TimeControl "180+1"]
[EndTime "11:21:13 PDT"]
[Termination "FabianoCaruana won on time"]

1. e4 {[%clk 0:03:00.9]} 1... c5 {[%clk 0:02:58.3]} 2. Nf3 {[%clk 0:03:01.3]}
2... Nc6 {[%clk 0:02:57.8]} 3. d3 {[%clk 0:02:57.6]} 3... Nf6 {[%clk 0:02:56.6]}
4. g3 {[%clk 0:02:58]} 4... d5 {[%clk 0:02:56.9]} 5. Nbd2 {[%clk 0:02:58.2]}
5... d4 {[%clk 0:02:56.1]} 6. Bg2 {[%clk 0:02:57.1]} 6... e5 {[%clk 0:02:56.3]}
7. O-O {[%clk 0:02:57.1]} 7... Be7 {[%clk 0:02:56.5]} 8. Nc4 {[%clk 0:02:54.5]}
8... Qc7 {[%clk 0:02:54.2]} 9. a4 {[%clk 0:02:51.5]} 9... Be6 {[%clk 0:02:53.1]}
10. Ne1 {[%clk 0:02:47.3]} 10... h5 {[%clk 0:02:51]} 11. f4 {[%clk 0:02:44.8]}
11... h4 {[%clk 0:02:45.5]} 12. f5 {[%clk 0:02:39.7]} 12... Bxc4 {[%clk
0:02:44.4]} 13. dxc4 {[%clk 0:02:40.6]} 13... hxg3 {[%clk 0:02:38.7]} 14. hxg3
{[%clk 0:02:41.5]} 14... O-O-O {[%clk 0:02:38.2]} 15. Nd3 {[%clk 0:02:34.1]}
15... Nb4 {[%clk 0:02:36.9]} 16. Bd2 {[%clk 0:01:59.8]} 16... Kb8 {[%clk
0:02:34.4]} 17. a5 {[%clk 0:01:55.9]} 17... a6 {[%clk 0:02:31.5]} 18. b3 {[%clk
0:01:51.7]} 18... Nc6 {[%clk 0:02:21.2]} 19. Qe2 {[%clk 0:01:10.2]} 19... Rh7
{[%clk 0:02:18.2]} 20. Kf2 {[%clk 0:01:06.6]} 20... Rdh8 {[%clk 0:02:16.8]} 21.
Rh1 {[%clk 0:01:06]} 21... Qd8 {[%clk 0:02:15.8]} 22. Rxh7 {[%clk 0:01:04.1]}
22... Rxh7 {[%clk 0:02:16.1]} 23. Rh1 {[%clk 0:01:03.8]} 23... Rxh1 {[%clk
0:02:13.8]} 24. Bxh1 {[%clk 0:01:04.7]} 24... Nh7 {[%clk 0:01:38.8]} 25. Qh5
{[%clk 0:01:01.6]} 25... Ng5 {[%clk 0:01:37.9]} 26. Bg2 {[%clk 0:00:53.4]} 26...
f6 {[%clk 0:01:23.9]} 27. Qg6 {[%clk 0:00:48.5]} 27... Bf8 {[%clk 0:01:20.2]}
28. Ke2 {[%clk 0:00:32.9]} 28... Ka7 {[%clk 0:01:14.4]} 29. Qh5 {[%clk
0:00:29.1]} 29... Bd6 {[%clk 0:01:10.7]} 30. Qg6 {[%clk 0:00:27.9]} 30... Qe7
{[%clk 0:01:01.8]} 31. Nf2 {[%clk 0:00:21.1]} 31... Bc7 {[%clk 0:00:57.8]} 32.
Bxg5 {[%clk 0:00:19.6]} 32... fxg5 {[%clk 0:00:57]} 33. Nh3 {[%clk 0:00:19]}
33... Bd8 {[%clk 0:00:51.1]} 34. Qe6 {[%clk 0:00:15.5]} 34... Qc7 {[%clk
0:00:50.5]} 35. Qd5 {[%clk 0:00:13]} 35... Qxa5 {[%clk 0:00:46.7]} 36. Bf3
{[%clk 0:00:10.3]} 36... Qc3 {[%clk 0:00:45.8]} 37. Bh5 {[%clk 0:00:03.8]} 37...
Qxc2+ {[%clk 0:00:42.7]} 38. Kf1 {[%clk 0:00:04.1]} 38... Qxb3 {[%clk
0:00:29.7]} 39. Be8 {[%clk 0:00:04.6]} 39... Qd3+ {[%clk 0:00:25.5]} 40. Kg2
{[%clk 0:00:03.9]} 40... g4 {[%clk 0:00:16.7]} 41. Nf2 {[%clk 0:00:03.9]} 41...
Qf3+ {[%clk 0:00:16.8]} 42. Kf1 {[%clk 0:00:04.6]} 42... d3 {[%clk 0:00:14.1]}
43. Bxc6 {[%clk 0:00:04.2]} 43... Qe2+ {[%clk 0:00:09.8]} 44. Kg2 {[%clk
0:00:03.2]} 44... Qf3+ {[%clk 0:00:09.8]} 45. Kf1 {[%clk 0:00:03.9]} 45... Qe2+
{[%clk 0:00:10.1]} 46. Kg1 {[%clk 0:00:04.6]} 46... bxc6 {[%clk 0:00:09.6]} 47.
Qd7+ {[%clk 0:00:03.1]} 47... Kb6 {[%clk 0:00:08.4]} 48. Qxd8+ {[%clk
0:00:03.5]} 48... Kb7 {[%clk 0:00:08.9]} 49. Qd7+ {[%clk 0:00:04.1]} 49... Kb6
{[%clk 0:00:08.9]} 50. Qd8+ {[%clk 0:00:04.7]} 50... Kb7 {[%clk 0:00:08.7]} 51.
Qxd3 {[%clk 0:00:04.5]} 51... Qe1+ {[%clk 0:00:09]} 52. Kg2 {[%clk 0:00:03.7]}
52... a5 {[%clk 0:00:09.5]} 53. Qd7+ {[%clk 0:00:03.9]} 53... Kb6 {[%clk
0:00:10.1]} 54. Qd8+ {[%clk 0:00:04.3]} 54... Kb7 {[%clk 0:00:10.6]} 55. Qxa5
{[%clk 0:00:04]} 55... Qxa5 {[%clk 0:00:09.6]} 0-1

[Event "*** SCC Grand Prix: Titled Tuesday Blitz"]
[Site "Chess.com"]
[Date "2020.06.02"]
[Round "7"]
[White "OnatB"]
[Black "GregShahade"]
[Result "0-1"]
[WhiteElo "2337"]
[BlackElo "2574"]
[TimeControl "180+1"]
[EndTime "11:21:13 PDT"]
[Termination "GregShahade won by resignation"]

1. e4 {[%clk 0:03:00.9]} 1... e5 {[%clk 0:02:59.8]} 2. d4 {[%clk 0:03:00.5]}
2... exd4 {[%clk 0:02:59]} 3. Qxd4 {[%clk 0:03:01.4]} 3... Nc6 {[%clk
0:02:58.6]} 4. Qe3 {[%clk 0:03:02.3]} 4... Nf6 {[%clk 0:02:55.7]} 5. Nc3 {[%clk
0:03:03.2]} 5... Bb4 {[%clk 0:02:55]} 6. Bd2 {[%clk 0:03:03.8]} 6... O-O {[%clk
0:02:54.2]} 7. O-O-O {[%clk 0:03:04.7]} 7... Re8 {[%clk 0:02:51.8]} 8. f3 {[%clk
0:03:04.8]} 8... d6 {[%clk 0:02:49.7]} 9. Nge2 {[%clk 0:03:03]} 9... Qe7 {[%clk
0:02:46.9]} 10. Nf4 {[%clk 0:03:00.5]} 10... Be6 {[%clk 0:02:38.4]} 11. h4
{[%clk 0:03:00.4]} 11... Rad8 {[%clk 0:02:37.2]} 12. Kb1 {[%clk 0:02:59.1]}
12... a6 {[%clk 0:02:24.9]} 13. Bc1 {[%clk 0:02:56.8]} 13... Bc5 {[%clk
0:02:06.9]} 14. Qe1 {[%clk 0:02:55.3]} 14... Ne5 {[%clk 0:02:04.5]} 15. h5
{[%clk 0:02:42.3]} 15... h6 {[%clk 0:02:04.1]} 16. Qh4 {[%clk 0:02:37.2]} 16...
Bc4 {[%clk 0:01:55.9]} 17. b3 {[%clk 0:02:11.2]} 17... Bxf1 {[%clk 0:01:55.4]}
18. Rdxf1 {[%clk 0:02:08]} 18... c6 {[%clk 0:01:48.3]} 19. Bb2 {[%clk
0:02:06.2]} 19... Nh7 {[%clk 0:01:42.5]} 20. Qg3 {[%clk 0:02:02.7]} 20... Qg5
{[%clk 0:01:39.5]} 21. Rh3 {[%clk 0:01:53.7]} 21... Qxg3 {[%clk 0:01:34]} 22.
Rxg3 {[%clk 0:01:53.1]} 22... Nf6 {[%clk 0:01:31.4]} 23. Nce2 {[%clk 0:01:44.6]}
23... Be3 {[%clk 0:01:25.1]} 24. Rh3 {[%clk 0:01:27.8]} 24... Kf8 {[%clk
0:01:21.9]} 25. Nd3 {[%clk 0:01:27]} 25... Bb6 {[%clk 0:01:11.1]} 26. f4 {[%clk
0:00:58.7]} 26... Nxe4 {[%clk 0:01:10.5]} 27. fxe5 {[%clk 0:00:51]} 27... Nd2+
{[%clk 0:01:10.5]} 28. Kc1 {[%clk 0:00:51.4]} 28... Nxf1 {[%clk 0:01:11.2]} 29.
Rf3 {[%clk 0:00:51.4]} 29... Ne3 {[%clk 0:01:03.2]} 30. Nef4 {[%clk 0:00:44.6]}
30... dxe5 {[%clk 0:00:58.1]} 31. Ng6+ {[%clk 0:00:42.4]} 31... Kg8 {[%clk
0:00:57]} 32. Ngxe5 {[%clk 0:00:42.3]} 32... f6 {[%clk 0:00:54]} 33. Ng6 {[%clk
0:00:35.8]} 33... Nxg2 {[%clk 0:00:43.8]} 34. Rg3 {[%clk 0:00:35.4]} 34... Ne1
{[%clk 0:00:37]} 35. Bxf6 {[%clk 0:00:18.7]} 35... Nxd3+ {[%clk 0:00:30.7]} 36.
cxd3 {[%clk 0:00:19.6]} 36... gxf6 {[%clk 0:00:29.4]} 37. Ne7+ {[%clk
0:00:18.8]} 37... Kf7 {[%clk 0:00:29]} 38. Nf5 {[%clk 0:00:19]} 38... Ke6 {[%clk
0:00:21.2]} 39. Ng7+ {[%clk 0:00:18.5]} 39... Kd5 {[%clk 0:00:19.5]} 40. Nxe8
{[%clk 0:00:10.4]} 40... Rxe8 {[%clk 0:00:20.4]} 41. Kd2 {[%clk 0:00:10.8]}
41... f5 {[%clk 0:00:15.9]} 42. Rg6 {[%clk 0:00:10.4]} 42... Be3+ {[%clk
0:00:15.6]} 43. Kc3 {[%clk 0:00:09.8]} 43... Bg5 {[%clk 0:00:15.6]} 44. Rg7
{[%clk 0:00:09.8]} 44... Re7 {[%clk 0:00:15.2]} 45. Rg8 {[%clk 0:00:09.4]} 45...
f4 {[%clk 0:00:15.4]} 46. Rf8 {[%clk 0:00:08.1]} 46... Ke6 {[%clk 0:00:15.9]}
47. Kd4 {[%clk 0:00:07.7]} 47... Rf7 {[%clk 0:00:15.6]} 48. Re8+ {[%clk
0:00:07.4]} 48... Kd7 {[%clk 0:00:15.4]} 49. Re1 {[%clk 0:00:06.9]} 49... f3
{[%clk 0:00:15.8]} 50. Rf1 {[%clk 0:00:06]} 50... f2 {[%clk 0:00:15.6]} 51. Ke4
{[%clk 0:00:06.9]} 51... Ke6 {[%clk 0:00:14.4]} 52. d4 {[%clk 0:00:07.8]} 52...
Kd6 {[%clk 0:00:13.7]} 53. Kd3 {[%clk 0:00:08.7]} 53... Kd5 {[%clk 0:00:13.9]}
54. Ke2 {[%clk 0:00:09.4]} 54... Kxd4 {[%clk 0:00:13.8]} 55. Rd1+ {[%clk
0:00:10.1]} 55... Kc3 {[%clk 0:00:12.1]} 56. Kf1 {[%clk 0:00:11]} 56... Be3
{[%clk 0:00:11.5]} 57. Rd6 {[%clk 0:00:10.6]} 57... Rg7 {[%clk 0:00:10.3]} 58.
Re6 {[%clk 0:00:11.5]} 58... Rg1+ {[%clk 0:00:09.7]} 59. Ke2 {[%clk 0:00:12.4]}
59... f1=Q+ {[%clk 0:00:09.7]} 60. Kxe3 {[%clk 0:00:12.2]} 60... Qe1+ {[%clk
0:00:09.5]} 61. Kf3 {[%clk 0:00:12.2]} 61... Qxe6 {[%clk 0:00:09.9]} 62. Kf4
{[%clk 0:00:13.1]} 62... Qf6+ {[%clk 0:00:09.7]} 0-1

[Event "*** SCC Grand Prix: Titled Tuesday Blitz"]
[Site "Chess.com"]
[Date "2020.06.02"]
[Round "7"]
[White "pedro_nascimento85"]
[Black "GaboSalazar2001"]
[Result "1/2-1/2"]
[WhiteElo "1950"]
[BlackElo "2255"]
[TimeControl "180+1"]
[EndTime "11:21:13 PDT"]
[Termination "Game drawn - insufficient material"]

1. d4 {[%clk 0:03:00.9]} 1... Nf6 {[%clk 0:02:59.6]} 2. c4 {[%clk 0:03:00.4]}
2... c5 {[%clk 0:03:00.2]} 3. d5 {[%clk 0:03:00]} 3... b5 {[%clk 0:03:00.8]} 4.
Qc2 {[%clk 0:02:58.1]} 4... bxc4 {[%clk 0:02:55.4]} 5. e4 {[%clk 0:02:57.6]}
5... e6 {[%clk 0:02:46.2]} 6. Bxc4 {[%clk 0:02:47.1]} 6... exd5 {[%clk
0:02:39.8]} 7. exd5 {[%clk 0:02:46.4]} 7... Bb7 {[%clk 0:02:18.1]} 8. Nc3 {[%clk
0:02:41.5]} 8... g6 {[%clk 0:02:16.1]} 9. Nf3 {[%clk 0:02:37.1]} 9... Bg7 {[%clk
0:02:13.5]} 10. O-O {[%clk 0:02:29.1]} 10... O-O {[%clk 0:02:12.6]} 11. Bg5
{[%clk 0:02:19.2]} 11... h6 {[%clk 0:02:05.4]} 12. Bh4 {[%clk 0:02:16.3]} 12...
d6 {[%clk 0:01:57.7]} 13. Rfe1 {[%clk 0:02:11.6]} 13... Na6 {[%clk 0:01:55.1]}
14. a3 {[%clk 0:02:09.8]} 14... Nc7 {[%clk 0:01:46.8]} 15. Rad1 {[%clk
0:01:58.7]} 15... Re8 {[%clk 0:01:43.1]} 16. Ne4 {[%clk 0:01:48.7]} 16... g5
{[%clk 0:01:27.1]} 17. Nxf6+ {[%clk 0:01:45]} 17... Qxf6 {[%clk 0:01:26.6]} 18.
Bg3 {[%clk 0:01:42.2]} 18... Rxe1+ {[%clk 0:01:18.8]} 19. Nxe1 {[%clk
0:01:28.8]} 19... Re8 {[%clk 0:00:57.9]} 20. Nf3 {[%clk 0:01:13.5]} 20... g4
{[%clk 0:00:46.8]} 21. Nd2 {[%clk 0:00:59]} 21... Nxd5 {[%clk 0:00:36.8]} 22.
Ne4 {[%clk 0:00:51.5]} 22... Qxb2 {[%clk 0:00:17]} 23. Qxb2 {[%clk 0:00:49]}
23... Bxb2 {[%clk 0:00:16.3]} 24. Nxd6 {[%clk 0:00:39.8]} 24... Re7 {[%clk
0:00:07.9]} 25. Nxb7 {[%clk 0:00:31.9]} 25... Rxb7 {[%clk 0:00:07.3]} 26. Rxd5
{[%clk 0:00:29.8]} 26... Bd4 {[%clk 0:00:05.7]} 27. h3 {[%clk 0:00:29.1]} 27...
gxh3 {[%clk 0:00:05]} 28. gxh3 {[%clk 0:00:28.9]} 28... Rb1+ {[%clk 0:00:04]}
29. Kg2 {[%clk 0:00:28.5]} 29... Ra1 {[%clk 0:00:04.3]} 30. Rd8+ {[%clk
0:00:26.8]} 30... Kg7 {[%clk 0:00:03.6]} 31. Rd7 {[%clk 0:00:26.7]} 31... Rxa3
{[%clk 0:00:02.5]} 32. Rxf7+ {[%clk 0:00:24.5]} 32... Kg6 {[%clk 0:00:02.9]} 33.
Rb7 {[%clk 0:00:19.8]} 33... Rc3 {[%clk 0:00:02.9]} 34. Bd5 {[%clk 0:00:19.3]}
34... a5 {[%clk 0:00:03.1]} 35. Ra7 {[%clk 0:00:17.3]} 35... Ra3 {[%clk
0:00:02.7]} 36. Ra6+ {[%clk 0:00:17]} 36... Kf5 {[%clk 0:00:02.3]} 37. Bc6
{[%clk 0:00:15.3]} 37... c4 {[%clk 0:00:01.4]} 38. Bc7 {[%clk 0:00:12.8]} 38...
c3 {[%clk 0:00:01.9]} 39. Rxa5+ {[%clk 0:00:08.5]} 39... Rxa5 {[%clk 0:00:02.1]}
40. Bxa5 {[%clk 0:00:08.5]} 40... c2 {[%clk 0:00:01.6]} 41. Bd2 {[%clk
0:00:08.1]} 41... Bb2 {[%clk 0:00:02.2]} 42. Bd7+ {[%clk 0:00:07.6]} 42... Kf6
{[%clk 0:00:02.2]} 43. Bxh6 {[%clk 0:00:06.2]} 43... c1=Q {[%clk 0:00:02.4]} 44.
Bxc1 {[%clk 0:00:06.3]} 44... Bxc1 {[%clk 0:00:03.3]} 45. Kf3 {[%clk 0:00:06.4]}
45... Kg6 {[%clk 0:00:03.6]} 46. Bc6 {[%clk 0:00:05.4]} 46... Bb2 {[%clk
0:00:04.5]} 47. Kg4 {[%clk 0:00:05.6]} 47... Bf6 {[%clk 0:00:05.4]} 48. h4
{[%clk 0:00:05.5]} 48... Be5 {[%clk 0:00:05.5]} 49. h5+ {[%clk 0:00:04.7]} 49...
Kh6 {[%clk 0:00:05.1]} 50. f4 {[%clk 0:00:05.2]} 50... Bxf4 {[%clk 0:00:05]} 51.
Kxf4 {[%clk 0:00:04.9]} 51... Kxh5 {[%clk 0:00:05.5]} 1/2-1/2